bitfinex/quotes_SOLUSD_20241202
["timestamp","ask_amount","ask_price","bid_price","bid_amount"]
[1733129432373,5.5417,225.56,225.39,0.88512651]
[1733129432790,18.859934,225.6,225.42,5.0]
[1733129432973,1.1081,225.6,225.44,4.452]
[1733129433178,155.447525,225.67,225.47,5.0]
[1733129433501,15.5061,225.68,225.54,43.95378603]
[1733129433502,43.95378603,225.61,225.54,43.95378603]
[1733129433794,43.95378603,225.61,225.55,43.95378603]
[1733129433979,43.95378603,225.64,225.57,43.95378603]
[1733129434176,43.95378603,225.64,225.58,43.95378603]
[1733129434471,43.95378603,225.63,225.56,48.40578603]
[1733129434671,43.95378603,225.62,225.56,4.452]
[1733129434974,43.95378603,225.63,225.57,43.95378603]
[1733129435289,43.95378603,225.64,225.6,4.452]
[1733129435497,1.1077,225.68,225.6,4.452]
[1733129435678,43.95378603,225.64,225.6,4.452]
[1733129435879,43.95378603,225.65,225.6,4.452]
[1733129436081,43.95378603,225.67,225.6,48.40578603]
[1733129436390,43.95378603,225.66,225.6,4.452]
[1733129436897,45.06128603,225.72,225.6,48.40578603]
[1733129436898,43.95378603,225.67,225.6,48.40578603]
[1733129437300,43.95378603,225.71,225.64,48.40578603]
[1733129437482,43.95378603,225.71,225.57,18.10805638]
[1733129437483,1.1073,225.76,225.66,43.95378603]
[1733129437803,43.95378603,225.73,225.67,1.01285695]
[1733129437995,43.95378603,225.71,225.67,1.01285695]
[1733129438383,43.95378603,225.71,225.68,4.452]
[1733129438598,43.95378603,225.71,225.69,1.01276719]
[1733129438777,43.95378603,225.7,225.69,1.01276719]
[1733129438980,1.1073,225.76,225.69,1.01276719]
[1733129439201,43.95378603,225.71,225.69,1.01276719]
[1733129439385,43.95378603,225.7,225.69,1.01276719]
[1733129439895,45.06138603,225.7,225.51,5.0]
[1733129440084,43.95378603,225.62,225.55,43.95378603]
[1733129440283,43.95378603,225.63,225.56,43.95378603]
[1733129440484,43.95378603,225.61,225.54,43.95378603]
[1733129440881,43.95378603,225.63,225.56,43.95378603]
[1733129441104,43.95378603,225.65,225.58,43.95378603]
[1733129441400,43.95378603,225.68,225.61,43.95378603]
[1733129441599,43.95378603,225.66,225.59,43.95378603]
[1733129442381,43.95378603,225.67,225.6,43.95378603]
[1733129442880,1.1076,225.71,225.64,43.95378603]
[1733129442881,43.95378603,225.71,225.64,43.95378603]
[1733129443198,43.95378603,225.69,225.62,43.95378603]
[1733129443404,43.95378603,225.68,225.61,43.95378603]
[1733129443982,43.95378603,225.69,225.62,43.95378603]
[1733129444496,13.2502,225.75,225.62,43.95378603]
[1733129444699,13.2502,225.75,225.63,43.95378603]
[1733129444890,43.95378603,225.69,225.62,43.95378603]
[1733129445093,43.95378603,225.7,225.63,43.95378603]
[1733129445295,43.95378603,225.7,225.64,43.95378603]
[1733129445496,43.95378603,225.7,225.65,4.452]
[1733129445698,26.97903205,225.7,225.64,26.97903205]
[1733129446207,26.97903205,225.72,225.65,26.97903205]
[1733129446591,26.97903205,225.72,225.66,4.452]
[1733129446909,26.97903205,225.69,225.65,4.452]
[1733129447110,26.97903205,225.72,225.67,4.452]
[1733129447881,1.1074,225.74,225.68,31.43103205]
[1733129448406,2.2143,225.8,225.69,4.452]
[1733129448407,16.97903205,225.73,225.69,4.452]
[1733129448587,26.97903205,225.7,225.63,26.97903205]
[1733129448781,26.97903205,225.69,225.63,26.97903205]
[1733129448987,26.97903205,225.69,225.64,4.452]
[1733129449820,26.97903205,225.69,225.58,5.88389711]
[1733129449992,26.97903205,225.69,225.64,4.452]
[1733129450309,26.97903205,225.7,225.64,31.43103205]
[1733129450511,26.97903205,225.71,225.64,31.43103205]
[1733129450922,26.97903205,225.71,225.66,4.452]
[1733129451203,26.97903205,225.72,225.66,31.43103205]
[1733129451409,1.1072,225.78,225.72,4.452]
[1733129451583,26.97903205,225.77,225.72,4.452]
[1733129451785,26.97903205,225.76,225.72,4.452]
[1733129452403,26.97903205,225.77,225.72,4.452]
[1733129452606,26.97903205,225.77,225.71,4.452]
[1733129453701,26.97903205,225.77,225.72,4.452]
[1733129453892,1.107,225.82,225.72,4.452]
[1733129454098,26.97903205,225.76,225.72,4.452]
[1733129454408,26.97903205,225.75,225.72,4.452]
[1733129454916,26.97903205,225.76,225.69,31.43103205]
[1733129455117,26.97903205,225.71,225.69,4.452]
[1733129455326,26.97903205,225.74,225.69,4.452]
[1733129455605,141.0211,225.82,225.69,31.43103205]
[1733129455606,26.97903205,225.76,225.69,31.43103205]
[1733129456013,26.97903205,225.77,225.71,31.43103205]
[1733129456189,26.97903205,225.78,225.71,31.43103205]
[1733129456384,1.107,225.82,225.75,4.452]
[1733129456613,26.97903205,225.79,225.75,4.452]
[1733129456809,26.97903205,225.81,225.75,4.452]
[1733129458295,26.97903205,225.81,225.76,4.452]
[1733129458491,26.97903205,225.8,225.76,4.452]
[1733129458707,26.97903205,225.82,225.76,4.452]
[1733129459118,26.97903205,225.78,225.76,4.452]
[1733129459298,26.97903205,225.78,225.72,26.97903205]
[1733129459299,26.97903205,225.79,225.73,5.33552464]
[1733129459617,26.97903205,225.78,225.73,5.33552464]
[1733129459915,26.97903205,225.79,225.73,5.33552464]
[1733129460330,3.3206,225.86,225.73,5.33552464]
[1733129460618,26.97903205,225.79,225.74,4.452]
[1733129460912,3.3206,225.86,225.74,4.452]
[1733129460913,26.97903205,225.78,225.74,4.452]
[1733129461519,1.107,225.83,225.74,4.452]
[1733129461520,26.97903205,225.75,225.74,4.452]
[1733129461735,26.97903205,225.75,225.7,4.452]
[1733129461908,137.7,225.82,225.7,4.452]
[1733129462212,137.7,225.81,225.7,4.452]
[1733129462618,32.51403205,225.83,225.71,0.88368231]
[1733129462818,1.107,225.83,225.71,0.88368231]
[1733129463121,2.2138,225.86,225.71,0.88368231]
[1733129463424,26.97903205,225.79,225.73,4.452]
[1733129463604,26.97903205,225.81,225.75,31.43103205]
[1733129463919,26.97903205,225.8,225.75,4.452]
[1733129464210,26.97903205,225.81,225.75,31.43103205]
[1733129464414,1.1068,225.87,225.74,0.88347231]
[1733129464415,1.1068,225.87,225.77,31.43103205]
[1733129464619,26.97903205,225.85,225.79,31.43103205]
[1733129464801,26.97903205,225.83,225.79,4.452]
[1733129465594,26.97903205,225.84,225.78,0.88330727]
[1733129465795,26.97903205,225.81,225.77,4.452]
[1733129466012,26.97903205,225.82,225.77,4.452]
[1733129466220,26.97903205,225.81,225.77,4.452]
[1733129466496,26.97903205,225.82,225.77,4.452]
[1733129466723,26.97903205,225.83,225.78,0.88336069]
[1733129466897,26.97903205,225.83,225.78,5.33536069]
[1733129467811,26.97903205,225.82,225.79,4.452]
[1733129468022,26.97903205,225.84,225.79,4.452]
[1733129468317,26.97903205,225.87,225.81,31.43103205]
[1733129468621,30.55187205,225.9,225.83,31.43103205]
[1733129468815,3.57284,225.9,225.84,0.88308022]
[1733129469018,30.55187205,225.9,225.84,0.88308022]
[1733129469214,3.57284,225.9,225.85,31.43103205]
[1733129469411,3.57284,225.9,225.86,0.88299724]
[1733129470918,26.97903205,225.89,225.86,0.88299724]
[1733129471596,30.55187205,225.9,225.86,0.88299724]
[1733129472002,3.57284,225.9,225.86,0.88299724]
[1733129472502,3.57284,225.9,225.88,4.452]
[1733129473506,3.57284,225.9,225.86,0.88299778]
[1733129473920,3.57284,225.9,225.89,4.452]
[1733129474105,3.57284,225.9,225.89,31.43103205]
[1733129474808,3.57284,225.9,225.89,37.4469261]
[1733129475008,26.97903205,226.01,225.93,4.452]
[1733129475203,26.97903205,226.02,225.95,31.43103205]
[1733129475532,26.97903205,226.03,225.97,4.452]
[1733129475712,1.1059,226.06,225.91,31.43103205]
[1733129475713,26.97903205,225.98,225.91,31.43103205]
[1733129475916,26.97903205,225.94,225.91,4.452]
[1733129476226,26.97903205,225.93,225.91,4.452]
[1733129476405,26.97903205,225.94,225.87,31.43103205]
[1733129476602,26.97903205,225.95,225.89,31.43103205]
[1733129476910,26.97903205,225.97,225.91,4.452]
[1733129477115,26.97903205,225.99,225.92,26.97903205]
[1733129477311,26.97903205,226.0,225.93,26.97903205]
[1733129477802,26.97903205,225.99,225.92,26.97903205]
[1733129478014,26.97903205,225.95,225.91,4.452]
[1733129478417,26.97903205,226.05,225.91,4.452]
[1733129478712,26.97903205,226.05,225.89,0.88291347]
[1733129478713,1.1058,226.07,225.92,5.33471034]
[1733129479020,1.1058,226.07,225.92,0.88271034]
[1733129479318,3.3175,226.07,225.91,4.452]
[1733129479728,26.97903205,225.99,225.92,26.97903205]
[1733129479931,26.97903205,226.01,225.95,4.452]
[1733129480627,1.1058,226.07,225.95,4.452]
[1733129480628,26.97903205,226.0,225.95,4.452]
[1733129480817,26.97903205,225.98,225.92,4.452]
[1733129481134,26.97903205,225.99,225.92,32.31378946]
[1733129481433,26.97903205,225.96,225.92,4.452]
[1733129482131,1.1058,226.08,225.94,31.43103205]
[1733129482431,26.97903205,226.0,225.95,0.88263656]
[1733129483012,26.97903205,226.04,225.97,31.43103205]
[1733129483208,26.97903205,226.04,225.99,4.452]
[1733129484123,26.97903205,226.04,225.98,5.33452716]
[1733129484333,26.97903205,226.02,225.98,4.452]
[1733129484548,26.97903205,226.03,225.98,4.452]
[1733129484911,26.97903205,226.04,225.98,5.33459491]
[1733129485218,26.97903205,226.02,225.97,0.88252441]
[1733129485416,26.97903205,226.03,225.97,0.88252441]
[1733129485923,1.1058,226.08,225.98,31.43103205]
[1733129486122,26.97903205,226.04,225.98,4.452]
[1733129486310,26.97903205,226.03,225.99,0.88254502]
[1733129486518,26.97903205,226.05,225.99,0.88254502]
[1733129486732,26.97903205,226.06,226.0,4.452]
[1733129486943,26.97903205,226.08,226.02,4.452]
[1733129487139,26.97903205,226.1,226.04,31.43103205]
[1733129487433,26.97903205,226.11,226.06,4.452]
[1733129487625,17.700411,226.34,226.09,2.5518]
[1733129487811,17.700411,226.34,226.32,4.452]
[1733129488014,16.79887723,226.33,226.2,0.8813536]
[1733129488231,35.29927598,226.41,226.01,26.83]
[1733129488232,16.79887723,226.25,226.17,16.79887723]
[1733129488912,16.79887723,226.25,226.18,4.452]
[1733129489644,26.85218171,226.25,226.17,26.85218171]
[1733129489812,26.85218171,226.25,226.18,31.30418171]
[1733129490432,26.85218171,226.23,226.18,4.452]
[1733129490617,26.85218171,226.23,226.17,4.452]
[1733129491034,26.85218171,226.26,226.19,4.452]
[1733129491331,137.7,226.39,226.26,4.452]
[1733129491516,26.85218171,226.34,226.28,4.452]
[1733129492144,26.85218171,226.34,226.28,31.30418171]
[1733129492432,26.85218171,226.34,226.28,4.452]
[1733129492640,26.85218171,226.31,226.27,4.452]
[1733129492824,26.85218171,226.32,226.27,4.452]
[1733129493136,26.85218171,226.33,226.27,4.452]
[1733129493513,26.85218171,226.31,226.28,4.452]
[1733129493715,26.85218171,226.29,226.28,4.452]
[1733129494646,26.85218171,226.29,226.2,31.30418171]
[1733129494816,26.85218171,226.23,226.2,4.452]
[1733129495041,26.85218171,226.22,226.16,4.452]
[1733129495325,26.85218171,226.23,226.16,31.30418171]
[1733129495710,26.85218171,226.25,226.18,31.30418171]
[1733129495913,137.7,226.26,226.2,31.30418171]
[1733129496938,26.85218171,226.27,226.22,4.452]
[1733129497414,26.85218171,226.28,226.22,31.30418171]
[1733129497617,26.85218171,226.31,226.26,4.452]
[1733129498337,26.85218171,226.32,226.26,4.452]
[1733129498826,26.85218171,226.31,226.26,4.452]
[1733129499149,26.85218171,226.32,226.26,4.452]
[1733129499310,26.85218171,226.33,226.27,4.452]
[1733129499515,26.85218171,226.32,226.27,4.452]
[1733129499710,26.85218171,226.31,226.27,4.452]
[1733129499941,26.85218171,226.29,226.27,4.452]
[1733129500322,26.85218171,226.28,226.27,4.452]
[1733129501245,26.85218171,226.3,226.24,4.452]
[1733129501538,137.7,226.32,226.16,26.85218171]
[1733129501539,138.804,226.44,226.29,31.30418171]
[1733129501716,26.85218171,226.36,226.31,4.452]
[1733129502126,26.85218171,226.38,226.31,31.30418171]
[1733129502332,26.85218171,226.39,226.33,4.452]
[1733129502566,137.7,226.43,226.37,4.452]
[1733129502730,26.85218171,226.43,226.37,31.30418171]
[1733129502929,26.85218171,226.41,226.37,4.452]
[1733129503619,26.85218171,226.43,226.38,4.452]
[1733129503838,26.85218171,226.42,226.38,4.452]
[1733129504137,25.85218171,226.42,226.38,4.452]
[1733129504640,26.85218171,226.4,226.34,4.452]
[1733129504838,26.85218171,226.39,226.34,4.452]
[1733129505028,26.85218171,226.38,226.34,4.452]
[1733129505540,26.85218171,226.36,226.34,4.452]
[1733129505737,26.85218171,226.36,226.31,4.452]
[1733129506240,26.85218171,226.36,226.17,10.0]
[1733129506241,142.7,226.42,226.28,4.452]
[1733129506423,26.85218171,226.33,226.28,4.452]
[1733129506620,26.85218171,226.32,226.26,4.452]
[1733129506921,26.85218171,226.33,226.26,31.30418171]
[1733129507529,26.85218171,226.31,226.26,4.452]
[1733129507728,26.85218171,226.3,226.27,4.452]
[1733129508141,26.85218171,226.31,226.27,4.452]
[1733129508329,26.85218171,226.34,226.29,4.452]
[1733129509528,26.85218171,226.32,226.3,4.452]
[1733129509846,26.85218171,226.31,226.25,4.452]
[1733129510072,137.7,226.35,226.25,4.452]
[1733129510073,26.85218171,226.3,226.25,4.452]
[1733129510545,26.85218171,226.3,226.24,4.452]
[1733129510841,26.85218171,226.29,226.24,4.452]
[1733129511450,26.85218171,226.29,226.22,26.85218171]
[1733129511451,137.7,226.31,226.21,4.452]
[1733129511747,26.85218171,226.34,226.29,4.452]
[1733129512241,26.85218171,226.33,226.29,4.452]
[1733129512648,26.85218171,226.33,226.27,4.452]
[1733129512940,26.82732157,226.33,226.27,4.452]
[1733129513145,26.85218171,226.34,226.27,4.452]
[1733129513647,27.95658171,226.35,226.28,31.30418171]
[1733129513940,26.85218171,226.36,226.28,31.30418171]
[1733129514130,26.85218171,226.36,226.3,4.452]
[1733129515042,26.85218171,226.35,226.3,4.452]
[1733129515242,26.85218171,226.36,226.29,4.452]
[1733129515635,26.85218171,226.35,226.29,4.452]
[1733129516645,27.95638171,226.39,226.32,31.30418171]
[1733129518923,26.85218171,226.38,226.32,31.30418171]
[1733129519119,26.85218171,226.37,226.33,4.452]
[1733129519347,26.85218171,226.38,226.33,4.452]
[1733129520335,26.85218171,226.41,226.36,4.452]
[1733129520646,27.95628171,226.43,226.38,4.452]
[1733129520851,26.85218171,226.42,226.38,4.452]
[1733129521548,26.85218171,226.41,226.38,4.452]
[1733129521728,26.85218171,226.41,226.36,4.452]
[1733129521930,1.1038,226.47,226.36,31.30418171]
[1733129521931,26.85218171,226.42,226.36,31.30418171]
[1733129522233,26.85218171,226.46,226.4,31.30418171]
[1733129522736,1.1038,226.47,226.4,31.30418171]
[1733129522737,27.95598171,226.47,226.4,31.30418171]
[1733129523140,26.85218171,226.43,226.38,4.452]
[1733129523433,26.85218171,226.44,226.38,4.452]
[1733129523627,26.85218171,226.43,226.38,4.452]
[1733129523961,26.85218171,226.39,226.38,4.452]
[1733129524337,26.85218171,226.39,226.34,4.452]
[1733129524526,26.85218171,226.41,226.34,31.30418171]
[1733129524839,26.85218171,226.41,226.36,4.452]
[1733129525038,26.85218171,226.39,226.36,4.452]
[1733129525237,26.85218171,226.4,226.36,4.452]
[1733129525731,26.85218171,226.4,226.3,13.2319]
[1733129525732,26.85218171,226.39,226.35,4.452]
[1733129525928,26.85218171,226.4,226.35,4.452]
[1733129526342,26.85218171,226.39,226.35,4.452]
[1733129526730,26.85218171,226.4,226.34,31.30418171]
[1733129526933,26.85218171,226.46,226.39,31.30418171]
[1733129527144,26.85218171,226.46,226.41,4.452]
[1733129527433,26.85218171,226.45,226.41,4.452]
[1733129528154,26.85218171,226.48,226.42,31.30418171]
[1733129528456,26.85218171,226.49,226.45,4.452]
[1733129528749,26.85218171,226.48,226.45,4.452]
[1733129529259,26.85218171,226.49,226.46,4.452]
[1733129529466,26.85218171,226.49,226.43,25.82225341]
[1733129529830,26.85218171,226.46,226.4,26.85218171]
[1733129530140,26.85218171,226.46,226.39,26.85218171]
[1733129530338,26.85218171,226.46,226.4,26.85218171]
[1733129530551,1.1037,226.5,226.41,26.85218171]
[1733129530755,26.85218171,226.48,226.42,31.30418171]
[1733129531057,26.85218171,226.47,226.43,4.452]
[1733129531439,26.85218171,226.48,226.43,4.452]
[1733129531640,26.85218171,226.49,226.43,31.30418171]
[1733129532074,26.85218171,226.5,226.43,31.30418171]
[1733129532546,26.85218171,226.48,226.44,4.452]
[1733129533342,26.85218171,226.49,226.44,4.452]
[1733129533754,26.85218171,226.48,226.43,4.452]
[1733129534152,26.85218171,226.46,226.43,4.452]
[1733129534459,26.85218171,226.45,226.43,4.452]
[1733129534755,26.85218171,226.46,226.41,4.452]
[1733129535157,26.85218171,226.43,226.41,4.452]
[1733129535459,26.85218171,226.44,226.41,4.452]
[1733129535858,26.85218171,226.44,226.39,4.452]
[1733129536439,26.85218171,226.46,226.41,4.452]
[1733129536752,26.85218171,226.44,226.41,4.452]
[1733129536958,26.85218171,226.43,226.41,4.452]
[1733129537565,26.85218171,226.43,226.38,4.452]
[1733129538259,35.1757,226.58,226.42,31.30418171]
[1733129538464,26.85218171,226.52,226.46,4.452]
[1733129539350,1.1034,226.56,226.49,26.85218171]
[1733129539560,26.85218171,226.55,226.5,4.452]
[1733129539751,26.85218171,226.54,226.5,4.452]
[1733129540459,26.85218171,226.54,226.48,4.452]
[1733129540658,26.85218171,226.51,226.48,4.452]
[1733129540859,26.85218171,226.53,226.48,4.452]
[1733129541050,26.85218171,226.54,226.48,4.452]
[1733129541252,26.85218171,226.53,226.48,4.452]
[1733129541470,137.7,226.63,226.4,75.0]
[1733129541471,137.7,226.63,226.5,4.452]
[1733129541649,26.85218171,226.55,226.5,4.452]
[1733129541966,26.85218171,226.56,226.5,26.85218171]
[1733129542170,26.85218171,226.56,226.51,4.452]
[1733129542368,26.85218171,226.55,226.51,4.452]
[1733129542669,26.85218171,226.55,226.5,4.452]
[1733129543672,26.85218171,226.55,226.49,4.452]
[1733129544278,1.1032,226.61,226.52,26.85218171]
[1733129544457,26.85218171,226.59,226.53,4.452]
[1733129544658,26.85218171,226.57,226.53,4.452]
[1733129545151,26.85218171,226.58,226.53,4.452]
[1733129545351,26.85218171,226.6,226.55,4.452]
[1733129545567,1.103,226.65,226.53,0.88045674]
[1733129545568,26.85218171,226.62,226.57,4.452]
[1733129545780,26.85218171,226.61,226.57,4.452]
[1733129546779,1.103,226.65,226.56,4.452]
[1733129546780,26.85218171,226.59,226.56,4.452]
[1733129547075,26.85218171,226.58,226.56,4.452]
[1733129547256,26.85218171,226.59,226.56,4.452]
[1733129547776,26.85218171,226.58,226.57,4.452]
[1733129547953,26.85218171,226.58,226.52,4.452]
[1733129548151,26.85218171,226.56,226.52,4.452]
[1733129548379,26.85218171,226.53,226.52,4.452]
[1733129548584,26.85218171,226.53,226.46,27.73279415]
[1733129548755,26.85218171,226.53,226.47,26.85218171]
[1733129548955,26.85218171,226.53,226.48,4.452]
[1733129549367,26.85218171,226.56,226.49,31.30418171]
[1733129549676,26.85218171,226.62,226.55,26.85218171]
[1733129549889,26.85218171,226.61,226.55,26.85218171]
[1733129550069,26.85218171,226.61,226.56,4.452]
[1733129550261,26.85218171,226.6,226.57,4.452]
[1733129550988,26.85218171,226.59,226.57,4.452]
[1733129551482,26.85218171,226.59,226.54,4.452]
[1733129551867,26.85218171,226.6,226.54,4.452]
[1733129552590,26.85218171,226.6,226.54,5.33242012]
[1733129553083,26.85218171,226.61,226.55,4.452]
[1733129553682,26.85218171,226.6,226.55,4.452]
[1733129553885,26.85218171,226.61,226.55,4.452]
[1733129554057,1.1028,226.68,226.55,4.452]
[1733129554058,1.1028,226.68,226.56,4.452]
[1733129554259,26.85218171,226.63,226.56,32.18455559]
[1733129554598,26.85218171,226.64,226.58,31.30418171]
[1733129554882,26.85218171,226.61,226.58,4.452]
[1733129555263,26.85218171,226.61,226.56,4.452]
[1733129555483,26.85218171,226.61,226.57,4.452]
[1733129555786,26.85218171,226.6,226.57,4.452]
[1733129556375,1.103,226.65,226.55,4.452]
[1733129556675,26.85218171,226.62,226.57,4.452]
[1733129556883,1.103,226.65,226.59,26.85218171]
[1733129556884,26.85218171,226.65,226.59,26.85218171]
[1733129557198,26.85218171,226.65,226.6,4.452]
[1733129557386,26.85218171,226.69,226.63,26.85218171]
[1733129557592,16.71540198,226.68,226.61,17.59561265]
[1733129557775,5.69009437,226.73,226.57,0.88009843]
[1733129557971,16.71540198,226.63,226.58,4.452]
[1733129558168,16.71540198,226.61,226.55,16.71540198]
[1733129558691,3.48489437,226.73,226.6,16.71540198]
[1733129558858,3.48489437,226.73,226.62,4.452]
[1733129559062,16.71540198,226.65,226.63,4.452]
[1733129559289,16.71540198,226.65,226.58,30.04540198]
[1733129559475,16.71540198,226.64,226.58,30.04540198]
[1733129559781,16.71540198,226.63,226.57,16.71540198]
[1733129559991,16.71540198,226.64,226.58,22.04767238]
[1733129560479,16.71540198,226.65,226.6,4.452]
[1733129560683,16.71540198,226.64,226.6,4.452]
[1733129561061,16.71540198,226.65,226.6,4.452]
[1733129561263,16.71540198,226.66,226.6,4.452]
[1733129561474,16.71540198,226.67,226.61,4.452]
[1733129561686,16.71540198,226.67,226.62,4.452]
[1733129562272,1.1028,226.7,226.62,4.452]
[1733129562471,16.71540198,226.67,226.62,4.452]
[1733129563370,16.71540198,226.68,226.63,4.452]
[1733129564276,18.760286,226.84,226.68,4.452]
[1733129564482,16.71540198,226.76,226.71,4.452]
[1733129564668,16.71540198,226.74,226.71,4.452]
[1733129564985,16.71540198,226.74,226.66,0.87974136]
[1733129564986,16.71540198,226.74,226.67,16.71540198]
[1733129565178,16.71540198,226.73,226.66,17.59514334]
[1733129565386,16.71540198,226.73,226.67,16.71540198]
[1733129565578,16.71540198,226.74,226.68,4.452]
[1733129565778,16.71540198,226.73,226.68,4.452]
[1733129566088,16.71540198,226.74,226.69,4.452]
[1733129566296,16.71540198,226.76,226.69,21.16740198]
[1733129566490,16.71540198,226.75,226.69,21.16740198]
[1733129566667,16.71540198,226.75,226.69,4.452]
[1733129567284,16.71540198,226.76,226.7,22.04723727]
[1733129567567,16.71540198,226.75,226.7,4.452]
[1733129567775,16.71540198,226.76,226.7,5.33177704]
[1733129567987,16.71540198,226.75,226.7,5.33177704]
[1733129568197,16.71540198,226.82,226.71,4.452]
[1733129568366,16.71540198,226.74,226.71,4.452]
[1733129568566,16.71540198,226.72,226.65,4.452]
[1733129568788,16.71540198,226.7,226.65,4.452]
[1733129568978,16.71540198,226.69,226.65,4.452]
[1733129569295,16.71540198,226.68,226.61,22.04733233]
[1733129569596,16.71540198,226.68,226.63,4.452]
[1733129570378,32.5182,226.76,226.67,4.452]
[1733129570583,16.71540198,226.7,226.67,4.452]
[1733129571277,32.5182,226.76,226.67,4.452]
[1733129571477,16.71540198,226.72,226.66,21.16740198]
[1733129571886,13.3076,226.77,226.61,70.87996865]
[1733129571887,16.71540198,226.74,226.68,4.452]
[1733129572079,16.71540198,226.76,226.7,4.452]
[1733129572575,16.71540198,226.75,226.7,4.452]
[1733129573268,16.71540198,226.74,226.69,4.452]
[1733129573787,16.71540198,226.75,226.69,21.16740198]
[1733129573985,1.1023,226.79,226.71,4.452]
[1733129573986,16.71540198,226.76,226.71,4.452]
[1733129574296,16.71540198,226.77,226.71,21.16740198]
[1733129574479,16.71540198,226.76,226.71,4.452]
[1733129575007,16.71540198,226.77,226.71,21.16740198]
[1733129575703,16.71540198,226.78,226.72,21.16740198]
[1733129575994,16.71540198,226.83,226.76,21.16740198]
[1733129576193,16.71540198,226.79,226.76,4.452]
[1733129576496,16.71540198,226.77,226.76,4.452]
[1733129577089,16.71540198,226.77,226.71,4.452]
[1733129577288,16.71540198,226.76,226.71,4.452]
[1733129579001,16.71540198,226.76,226.7,4.452]
[1733129579502,16.71540198,226.76,226.7,21.16740198]
[1733129579798,16.71540198,226.78,226.72,21.16740198]
[1733129579986,16.71540198,226.81,226.75,4.452]
[1733129580183,16.71540198,226.82,226.75,21.16740198]
[1733129580377,16.71540198,226.81,226.75,21.16740198]
[1733129580582,16.71540198,226.8,226.75,4.452]
[1733129580778,1.102,226.86,226.75,4.452]
[1733129580779,16.71540198,226.82,226.75,21.16740198]
[1733129580985,16.71540198,226.8,226.75,4.452]
[1733129582207,16.71540198,226.76,226.69,21.16740198]
[1733129582383,16.71540198,226.74,226.69,4.452]
[1733129582793,16.71540198,226.77,226.71,4.452]
[1733129583100,16.71540198,226.8,226.74,21.16740198]
[1733129583307,16.71540198,226.81,226.76,4.452]
[1733129583485,16.71540198,226.82,226.76,21.16740198]
[1733129584299,16.71540198,226.84,226.78,4.452]
[1733129584603,16.71540198,226.85,226.78,22.04692927]
[1733129584984,16.71540198,226.85,226.78,21.16740198]
[1733129585181,16.71540198,226.85,226.79,16.71540198]
[1733129585389,16.71540198,226.87,226.8,22.04685481]
[1733129585799,16.71540198,226.82,226.74,12.7543]
[1733129586005,16.71540198,226.78,226.72,16.71540198]
[1733129586694,16.71540198,226.79,226.73,16.71540198]
[1733129587002,16.71540198,226.8,226.75,4.452]
[1733129587204,16.71540198,226.81,226.75,4.452]
[1733129587499,1.102,226.85,226.79,4.452]
[1733129587500,16.71540198,226.84,226.79,4.452]
[1733129587680,16.71540198,226.81,226.79,4.452]
[1733129588506,16.71540198,226.81,226.76,4.452]
[1733129588798,16.71540198,226.82,226.76,21.16740198]
[1733129588991,16.71540198,226.83,226.76,21.16740198]
[1733129589191,16.71540198,226.84,226.78,4.452]
[1733129589395,16.71540198,226.83,226.78,4.452]
[1733129590606,16.71540198,226.83,226.77,4.452]
[1733129590901,1.102,226.85,226.77,4.452]
[1733129590902,16.71540198,226.8,226.77,4.452]
[1733129591406,16.45090198,226.8,226.77,4.452]
[1733129591701,16.45090198,226.8,226.75,4.452]
[1733129592200,16.71540198,226.82,226.77,4.452]
[1733129592387,16.71540198,226.83,226.77,21.16740198]
[1733129592583,12.043,226.94,226.83,4.452]
[1733129592789,16.71540198,226.89,226.83,21.16740198]
[1733129593206,12.043,226.94,226.83,4.452]
[1733129593389,16.71540198,226.88,226.83,4.452]
[1733129593807,16.71540198,226.84,226.83,4.452]
[1733129594104,1.1018,226.89,226.83,4.452]
[1733129594105,16.71540198,226.86,226.83,4.452]
[1733129594482,16.71540198,226.85,226.83,4.452]
[1733129594903,16.71540198,226.85,226.84,4.452]